bitfinex-derivatives/quotes_SOLF0:USTF0_20241105
["timestamp","ask_amount","ask_price","bid_price","bid_amount"]
[1730767130407,3.32,158.55,158.51,9.66521904]
[1730767131209,3.32,158.55,158.49,9.66521904]
[1730767131504,12.98521904,158.55,158.49,9.66521904]
[1730767131805,12.98521904,158.55,158.48,9.66521904]
[1730767132003,12.98521904,158.55,158.49,9.66521904]
[1730767132706,9.66521904,158.55,158.49,9.66521904]
[1730767133005,3.32,158.54,158.49,9.66521904]
[1730767134604,3.32,158.54,158.48,9.66521904]
[1730767139312,3.32,158.54,158.49,9.66521904]
[1730767143718,3.32,158.54,158.51,9.66521904]
[1730767148413,3.32,158.56,158.51,9.66521904]
[1730767148606,3.32,158.56,158.52,9.66521904]
[1730767150315,3.32,158.56,158.51,9.66521904]
[1730767150816,12.98521904,158.56,158.51,9.66521904]
[1730767154607,12.98521904,158.56,158.49,9.66521904]
[1730767154808,12.98521904,158.56,158.48,9.66521904]
[1730767154809,9.66521904,158.55,158.48,9.66521904]
[1730767156026,9.66521904,158.51,158.46,9.66521904]
[1730767156230,12.98521904,158.51,158.46,9.66521904]
[1730767157222,9.66521904,158.51,158.46,9.66521904]
[1730767157421,3.32,158.52,158.47,9.66521904]
[1730767157719,3.32,158.52,158.41,6.43882702]
[1730767157720,12.98521904,158.52,158.46,9.66521904]
[1730767160235,3.32,158.52,158.48,9.66521904]
[1730767160525,1.3512,158.54,158.49,9.66521904]
[1730767160732,1.341,158.57,158.42,2.7198]
[1730767160733,9.66521904,158.57,158.51,9.66521904]
[1730767161023,45.42,158.68,158.52,9.66521904]
[1730767161024,3.32,158.56,158.52,9.66521904]
[1730767161218,9.66521904,158.57,158.52,9.66521904]
[1730767161424,12.98521904,158.57,158.52,9.66521904]
[1730767162529,12.98521904,158.57,158.5,9.66521904]
[1730767162827,12.98521904,158.57,158.52,9.66521904]
[1730767163718,3.32,158.58,158.53,9.66521904]
[1730767163923,9.66521904,158.59,158.53,9.66521904]
[1730767164219,12.98521904,158.59,158.53,9.66521904]
[1730767164625,9.66521904,158.58,158.53,9.66521904]
[1730767169228,9.66521904,158.58,158.52,9.66521904]
[1730767169423,9.66521904,158.57,158.5,9.66521904]
[1730767169629,9.66521904,158.55,158.48,9.66521904]
[1730767169830,12.98521904,158.55,158.48,9.66521904]
[1730767170030,12.98521904,158.55,158.5,9.66521904]
[1730767170229,3.32,158.55,158.5,9.66521904]
[1730767170538,3.32,158.55,158.51,9.66521904]
[1730767172529,3.32,158.55,158.5,9.66521904]
[1730767172735,12.98521904,158.55,158.5,9.66521904]
[1730767174532,12.98521904,158.55,158.48,9.66521904]
[1730767176839,3.32,158.55,158.52,9.66521904]
[1730767177426,9.66521904,158.58,158.52,9.66521904]
[1730767177637,3.3,158.57,158.52,9.66521904]
[1730767180230,12.96521904,158.57,158.52,9.66521904]
[1730767183141,3.3,158.57,158.52,9.66521904]
[1730767189949,9.66521904,158.58,158.52,9.66521904]
[1730767190142,9.66521904,158.61,158.55,9.66521904]
[1730767190347,3.3,158.6,158.55,9.66521904]
[1730767191651,9.66521904,158.61,158.55,9.66521904]
[1730767191851,9.66521904,158.63,158.58,9.66521904]
[1730767192047,3.3,158.63,158.58,9.66521904]
[1730767192849,3.3,158.63,158.53,1.4096]
[1730767192850,3.3,158.63,158.56,9.66521904]
[1730767193054,9.66521904,158.61,158.56,9.66521904]
[1730767196353,12.96521904,158.63,158.56,9.66521904]
[1730767199464,9.66521904,158.6,158.55,9.66521904]
[1730767200267,9.66521904,158.61,158.56,9.66521904]
[1730767201057,12.96521904,158.63,158.56,9.66521904]
[1730767203257,12.96521904,158.63,158.57,9.66521904]
[1730767204963,12.96521904,158.63,158.56,9.66521904]
[1730767204964,9.66521904,158.61,158.56,9.66521904]
[1730767206360,9.66521904,158.6,158.54,9.66521904]
[1730767206562,39.24039348,158.65,158.53,1.4096]
[1730767206563,9.66521904,158.58,158.53,1.4096]
[1730767206960,3.3,158.59,158.54,9.66521904]
[1730767207273,3.3,158.6,158.55,9.66521904]
[1730767208067,9.66521904,158.63,158.57,9.66521904]
[1730767208259,3.3,158.63,158.58,9.66521904]
[1730767209463,3.3,158.63,158.6,9.66521904]
[1730767209669,42.54039348,158.65,158.61,9.66521904]
[1730767210572,42.54039348,158.65,158.59,9.66521904]
[1730767214173,42.54039348,158.65,158.61,9.66521904]
[1730767214376,11.03311904,158.67,158.61,9.66521904]
[1730767214672,9.66521904,158.66,158.59,9.66521904]
[1730767216773,9.66521904,158.66,158.6,9.66521904]
[1730767218480,12.96521904,158.67,158.62,9.66521904]
[1730767218678,9.66521904,158.67,158.62,9.66521904]
[1730767218976,9.66521904,158.7,158.63,9.66521904]
[1730767219179,9.66521904,158.7,158.64,9.66521904]
[1730767219180,12.96521904,158.7,158.64,9.66521904]
[1730767219596,9.66521904,158.69,158.63,9.66521904]
[1730767220179,9.66521904,158.7,158.64,9.66521904]
[1730767220383,14.32821904,158.72,158.66,9.66521904]
[1730767221692,12.96521904,158.72,158.66,9.66521904]
[1730767222297,9.66521904,158.72,158.66,9.66521904]
[1730767222501,9.66521904,158.7,158.64,9.66521904]
[1730767222685,9.66521904,158.69,158.63,9.66521904]
[1730767222992,12.96521904,158.69,158.63,9.66521904]
[1730767224994,9.66521904,158.67,158.61,9.66521904]
[1730767225183,9.66521904,158.67,158.59,4.7154]
[1730767225184,9.66521904,158.66,158.6,9.66521904]
[1730767225588,9.66521904,158.67,158.61,9.66521904]
[1730767226185,9.66521904,158.68,158.62,9.66521904]
[1730767228496,3.3,158.69,158.64,9.66521904]
[1730767229496,9.66521904,158.72,158.66,9.66521904]
[1730767229697,3.3,158.72,158.67,9.66521904]
[1730767230198,9.66521904,158.76,158.71,9.66521904]
[1730767230388,3.3,158.76,158.72,9.66521904]
[1730767230596,3.3,158.76,158.63,3.3]
[1730767230597,9.66521904,158.79,158.74,9.66521904]
[1730767230792,12.96521904,158.81,158.76,9.66521904]
[1730767230999,3.3,158.81,158.76,9.66521904]
[1730767231293,3.3,158.81,158.77,9.66521904]
[1730767232902,12.96521904,158.81,158.75,9.66521904]
[1730767236007,9.66521904,158.8,158.73,9.66521904]
[1730767236397,9.66521904,158.77,158.71,9.66521904]
[1730767236701,12.96521904,158.77,158.7,9.66521904]
[1730767237297,3.3,158.77,158.68,19.25758639]
[1730767237903,3.3,158.77,158.71,15.13948639]
[1730767240909,15.13948639,158.81,158.71,15.13948639]
[1730767240910,3.3,158.8,158.71,18.43948639]
[1730767241501,3.3,158.8,158.73,15.13948639]
[1730767242299,3.3,158.81,158.73,15.13948639]
[1730767242509,3.3,158.82,158.75,15.13948639]
[1730767244513,3.3,158.83,158.75,15.13948639]
[1730767244808,3.3,158.83,158.74,1.3217]
[1730767254420,3.3,158.83,158.73,15.13948639]
[1730767254616,15.13948639,158.81,158.71,15.13948639]
[1730767257325,9.68710983,158.79,158.73,9.68710983]
[1730767257522,3.3,158.78,158.73,9.68710983]
[1730767263233,9.68710983,158.76,158.7,9.68710983]
[1730767264726,9.68710983,158.76,158.68,1.419]
[1730767264727,9.68710983,158.74,158.68,9.68710983]
[1730767264928,12.96710983,158.74,158.68,9.68710983]
[1730767265318,12.96710983,158.74,158.65,2.6644]
[1730767265319,9.68710983,158.72,158.67,9.68710983]
[1730767267223,3.28,158.74,158.7,9.68710983]
[1730767269425,3.28,158.74,158.68,15.14083062]
[1730767270333,3.28,158.74,158.69,1.3606]
[1730767271127,1.378,158.77,158.69,1.3606]
[1730767271320,3.28,158.79,158.7,15.14083062]
[1730767272031,18.42083062,158.79,158.69,1.3606]
[1730767272621,3.28,158.79,158.7,15.14083062]
[1730767273225,18.42083062,158.79,158.69,1.3606]
[1730767273625,18.42083062,158.79,158.7,15.14083062]
[1730767273828,3.28,158.79,158.7,15.14083062]
[1730767274839,3.28,158.78,158.7,15.14083062]
[1730767278633,3.28,158.77,158.7,15.14083062]
[1730767282646,3.28,158.77,158.69,1.3606]
[1730767284440,15.14083062,158.76,158.69,1.3606]
[1730767284642,16.47603062,158.76,158.66,16.42873062]
[1730767286239,3.28,158.77,158.68,15.14083062]
[1730767289047,15.14083062,158.76,158.66,1.2879]
[1730767289546,9.6923582,158.74,158.68,9.6923582]
[1730767289750,3.28,158.73,158.68,9.6923582]
[1730767293053,3.28,158.73,158.7,9.6923582]
[1730767293350,3.28,158.73,158.71,9.6923582]
[1730767294350,3.28,158.78,158.71,9.6923582]
[1730767294643,9.6923582,158.77,158.72,11.0115582]
[1730767295343,3.28,158.78,158.72,1.3192]
[1730767295344,9.6923582,158.76,158.72,1.3192]
[1730767295549,9.6923582,158.76,158.7,9.6923582]
[1730767296238,9.6923582,158.75,158.69,9.6923582]
[1730767296444,3.28,158.74,158.69,9.6923582]
[1730767298145,1.4169,158.8,158.67,1.3603]
[1730767298146,3.28,158.76,158.72,9.6923582]
[1730767298857,3.28,158.77,158.73,9.6923582]
[1730767301645,9.6923582,158.79,158.73,9.6923582]
[1730767301948,3.28,158.78,158.73,9.6923582]
[1730767303958,9.6923582,158.77,158.72,9.6923582]
[1730767304254,9.6923582,158.76,158.7,9.6923582]
[1730767307661,9.6923582,158.73,158.67,11.0526582]
[1730767307863,3.28,158.72,158.67,11.0526582]
[1730767308547,9.6923582,158.71,158.65,11.0308582]
[1730767308749,9.6923582,158.71,158.57,3.10973034]
[1730767308750,9.6923582,158.7,158.63,9.6923582]
[1730767310549,9.6923582,158.67,158.6,9.6923582]
[1730767310759,3.28,158.66,158.6,9.6923582]
[1730767314356,3.28,158.66,158.61,9.6923582]
[1730767315154,3.28,158.66,158.63,9.6923582]
[1730767315857,9.6923582,158.68,158.63,9.6923582]
[1730767316059,3.28,158.65,158.63,9.6923582]
[1730767317056,9.6923582,158.68,158.63,9.6923582]
[1730767317253,3.28,158.67,158.64,9.6923582]
[1730767319561,3.28,158.67,158.63,9.6923582]
[1730767320156,12.9723582,158.67,158.61,9.6923582]
[1730767322562,12.9723582,158.67,158.63,9.6923582]
[1730767323168,3.28,158.67,158.63,9.6923582]
[1730767324262,9.6923582,158.69,158.63,9.6923582]
[1730767324469,3.28,158.68,158.65,9.6923582]
[1730767324656,3.28,158.69,158.65,9.6923582]
[1730767327571,3.28,158.69,158.64,9.6923582]
[1730767329568,12.9723582,158.69,158.62,9.6923582]
[1730767329864,9.6923582,158.67,158.61,9.6923582]
[1730767330663,3.28,158.66,158.61,9.6923582]
[1730767331975,3.28,158.66,158.62,9.6923582]
[1730767332277,3.28,158.66,158.63,9.6923582]
[1730767332465,9.6923582,158.7,158.65,9.6923582]
[1730767332665,3.28,158.69,158.65,9.6923582]
[1730767333075,9.6923582,158.73,158.66,9.6923582]
[1730767333266,3.28,158.72,158.66,9.6923582]
[1730767333770,9.6923582,158.71,158.66,9.6923582]
[1730767334886,12.9723582,158.71,158.66,9.6923582]
[1730767336481,9.6923582,158.71,158.66,9.6923582]
[1730767336679,12.9723582,158.71,158.66,9.6923582]
[1730767338277,3.28,158.71,158.66,9.6923582]
[1730767338484,3.28,158.71,158.61,3.28]
[1730767338485,3.28,158.71,158.67,9.6923582]
[1730767338889,3.28,158.71,158.66,9.6923582]
[1730767343695,12.9723582,158.71,158.66,9.6923582]
[1730767344488,12.9723582,158.71,158.58,3.9853]
[1730767344489,9.6923582,158.7,158.64,9.6923582]
[1730767346892,3.28,158.69,158.64,9.6923582]
[1730767348308,9.6923582,158.71,158.65,9.6923582]
[1730767348489,3.28,158.7,158.65,9.6923582]
[1730767348688,9.6923582,158.71,158.65,9.6923582]
[1730767348896,3.28,158.7,158.65,9.6923582]
[1730767349600,3.28,158.7,158.67,9.6923582]
[1730767352491,12.9723582,158.7,158.63,9.6923582]
[1730767355002,9.6923582,158.68,158.63,9.6923582]
[1730767356699,9.6923582,158.67,158.61,9.6923582]
[1730767356895,3.28,158.66,158.61,9.6923582]
[1730767359002,3.28,158.66,158.63,9.6923582]
[1730767360709,3.28,158.66,158.61,9.6923582]
[1730767372810,12.9723582,158.66,158.58,3.9853]
[1730767373008,9.6923582,158.62,158.57,9.6923582]
[1730767373518,12.9723582,158.62,158.57,9.6923582]
[1730767374515,3.28,158.62,158.58,9.6923582]
[1730767376014,12.9723582,158.62,158.57,9.6923582]
[1730767376812,9.6923582,158.61,158.55,9.6923582]
[1730767377009,9.6923582,158.61,158.52,4.0101]
[1730767377010,9.6923582,158.6,158.54,9.6923582]
[1730767377215,9.6923582,158.58,158.52,13.7024582]
[1730767377416,3.28,158.58,158.54,9.6923582]
[1730767377621,3.28,158.58,158.55,9.6923582]
[1730767380721,3.28,158.58,158.52,4.0101]
[1730767380924,3.28,158.58,158.54,9.6923582]
[1730767384328,9.6923582,158.6,158.54,9.6923582]
[1730767384532,3.26,158.59,158.54,9.6923582]
[1730767385824,9.6923582,158.55,158.49,9.6923582]
[1730767386129,9.6923582,158.55,158.35,60.00658636]
[1730767386130,9.6923582,158.54,158.48,9.6923582]
[1730767388030,9.6923582,158.49,158.41,9.6923582]
[1730767388217,9.6923582,158.47,158.41,9.6923582]
[1730767388417,12.9523582,158.47,158.41,9.6923582]
[1730767391026,3.26,158.47,158.43,9.6923582]
[1730767392426,3.26,158.47,158.41,9.6923582]
[1730767393425,9.6923582,158.46,158.41,9.6923582]
[1730767393633,9.6923582,158.46,158.4,9.6923582]
[1730767394524,12.9523582,158.47,158.42,9.6923582]
[1730767395233,9.6923582,158.47,158.42,9.6923582]
[1730767396830,9.6923582,158.46,158.42,9.6923582]
[1730767398337,9.6923582,158.46,158.4,9.6923582]
[1730767398633,9.6923582,158.45,158.4,9.6923582]
[1730767399437,9.6923582,158.45,158.39,9.6923582]
[1730767399733,9.6923582,158.43,158.39,9.6923582]
[1730767400130,3.26,158.44,158.39,9.6923582]
[1730767401026,3.26,158.44,158.4,9.6923582]
[1730767401629,3.26,158.44,158.39,9.6923582]
[1730767402536,9.6923582,158.45,158.39,9.6923582]
[1730767402727,12.9523582,158.45,158.39,9.6923582]
[1730767407838,9.6923582,158.47,158.41,9.6923582]
[1730767408436,3.26,158.48,158.39,9.6923582]
[1730767408437,9.6923582,158.45,158.39,9.6923582]
[1730767408836,9.6923582,158.44,158.38,9.6923582]
[1730767409237,9.6923582,158.42,158.37,1.3117]
[1730767409431,9.6923582,158.4,158.36,1.2986]
[1730767409739,9.6923582,158.37,158.32,9.9420882]
[1730767409939,3.26,158.4,158.32,0.24973]
[1730767409940,9.6923582,158.36,158.32,0.24973]
[1730767411136,9.6923582,158.33,158.32,0.24973]
[1730767412941,12.9523582,158.33,158.32,0.24973]
[1730767413332,18.42578656,158.33,158.32,0.24973]
[1730767415937,15.16578656,158.33,158.32,0.24973]
[1730767416135,18.42578656,158.33,158.32,0.24973]
[1730767418238,3.26,158.33,158.32,0.24973]
[1730767418442,15.16578656,158.35,158.32,0.24973]
[1730767418741,3.26,158.34,158.32,0.24973]
[1730767420239,15.16578656,158.35,158.32,0.24973]
[1730767420438,3.26,158.34,158.32,0.24973]
[1730767422147,3.26,158.34,158.25,15.16578656]
[1730767424246,15.16578656,158.33,158.22,16.46718656]
[1730767424436,3.26,158.32,158.22,16.46718656]
[1730767425246,3.26,158.32,158.25,0.31198]
[1730767425853,3.26,158.33,158.25,15.47776656]
[1730767426345,18.42578656,158.33,158.25,0.31198]
[1730767427151,15.16578656,158.31,158.25,0.31198]
[1730767427445,15.16578656,158.29,158.25,0.31198]
[1730767427641,3.26,158.28,158.25,0.31198]
[1730767428150,3.26,158.28,158.13,3.11996717]
[1730767428151,15.16578656,158.26,158.14,15.16578656]
[1730767428348,15.16578656,158.23,158.14,19.23818656]
[1730767428551,18.42578656,158.23,158.14,19.23818656]
[1730767430049,3.26,158.22,158.14,19.23818656]
[1730767431549,15.16578656,158.25,158.14,19.23818656]
[1730767431746,3.26,158.24,158.16,15.16578656]
[1730767435454,3.26,158.24,158.17,9.71527253]
[1730767435455,9.71527253,158.23,158.17,9.71527253]
[1730767436550,9.71527253,158.25,158.19,9.71527253]
[1730767436757,12.97527253,158.25,158.19,9.71527253]
[1730767437843,3.26,158.25,158.2,9.71527253]
[1730767438557,12.97527253,158.26,158.2,9.71527253]
[1730767439352,9.71527253,158.26,158.2,9.71527253]
[1730767441359,9.71527253,158.26,158.21,9.71527253]
[1730767442057,12.97527253,158.31,158.25,9.71527253]
[1730767444459,9.71527253,158.31,158.25,9.71527253]
[1730767444666,9.71527253,158.31,158.22,6.49312592]
[1730767444865,9.71527253,158.31,158.26,9.71527253]
[1730767445062,9.71527253,158.32,158.26,9.71527253]
[1730767446557,9.71527253,158.32,158.28,9.71527253]
[1730767446759,12.97527253,158.34,158.28,9.71527253]
[1730767447264,3.26,158.34,158.29,9.71527253]
[1730767448160,9.71527253,158.35,158.29,9.71527253]
[1730767448360,12.97527253,158.38,158.32,9.71527253]
[1730767448555,9.71527253,158.37,158.32,9.71527253]
[1730767448863,9.71527253,158.37,158.31,9.71527253]
[1730767449563,9.71527253,158.36,158.31,9.71527253]
[1730767452769,9.71527253,158.37,158.31,9.71527253]
[1730767453065,9.71527253,158.37,158.32,9.71527253]
[1730767455057,9.71527253,158.37,158.31,9.71527253]
[1730767455362,9.71527253,158.36,158.31,9.71527253]
[1730767455569,9.71527253,158.36,158.29,9.71527253]
[1730767463677,9.71527253,158.36,158.3,9.71527253]
[1730767464969,9.71527253,158.36,158.29,9.71527253]
[1730767466168,9.71527253,158.37,158.31,9.71527253]
[1730767466575,9.71527253,158.36,158.29,9.71527253]
[1730767472784,9.71527253,158.34,158.28,9.71527253]
[1730767477985,9.71527253,158.34,158.29,9.71527253]
[1730767478281,9.71527253,158.36,158.29,9.71527253]
[1730767478876,9.71527253,158.37,158.31,9.71527253]
[1730767479076,3.26,158.36,158.31,9.71527253]
[1730767481074,9.71527253,158.37,158.32,9.71527253]
[1730767484579,9.71527253,158.36,158.31,9.71527253]
[1730767485685,9.71527253,158.37,158.31,9.71527253]
[1730767488083,9.71527253,158.37,158.28,3.26]
[1730767488276,9.71527253,158.34,158.28,9.71527253]
[1730767489887,9.71527253,158.33,158.28,9.71527253]
[1730767490889,9.71527253,158.34,158.28,9.71527253]
[1730767492080,3.26,158.35,158.29,9.71527253]
[1730767493386,9.71527253,158.32,158.26,11.05487253]
[1730767493795,9.71527253,158.34,158.28,9.71527253]
[1730767494094,3.26,158.35,158.3,9.71527253]
[1730767495493,9.71527253,158.36,158.3,9.71527253]
[1730767495694,3.26,158.35,158.3,9.71527253]
[1730767499500,3.26,158.35,158.31,9.71527253]
[1730767499900,9.71527253,158.37,158.31,9.71527253]
[1730767503195,9.71527253,158.36,158.31,9.71527253]
[1730767503404,9.71527253,158.36,158.3,9.71527253]
[1730767508204,9.71527253,158.33,158.28,9.71527253]
[1730767508498,9.71527253,158.33,158.27,9.71527253]
[1730767508702,9.71527253,158.32,158.27,9.71527253]
[1730767508897,9.71527253,158.34,158.27,9.71527253]
[1730767509603,12.97527253,158.34,158.27,9.71527253]
[1730767511392,12.97527253,158.34,158.28,9.71527253]
[1730767511594,2.709,158.41,158.3,9.71527253]
[1730767511795,9.71527253,158.37,158.32,9.71527253]
[1730767512706,9.71527253,158.37,158.3,9.71527253]
[1730767513513,9.71527253,158.35,158.3,9.71527253]
[1730767514601,9.71527253,158.35,158.28,3.26]
[1730767514808,9.71527253,158.35,158.29,9.71527253]
[1730767521612,3.26,158.36,158.29,9.71527253]
[1730767521613,9.71527253,158.34,158.29,9.71527253]
[1730767524613,9.71527253,158.33,158.27,9.71527253]
[1730767526204,9.71527253,158.33,158.26,11.05487253]
[1730767526406,9.71527253,158.31,158.26,11.05487253]
[1730767526608,9.71527253,158.31,158.26,1.3396]
[1730767526808,9.71527253,158.3,158.25,1.3246]
[1730767527009,12.97527253,158.3,158.24,11.10637253]
[1730767527411,9.71527253,158.28,158.23,9.71527253]
[1730767527611,9.71527253,158.28,158.22,1.3178]
[1730767528917,9.71527253,158.28,158.23,9.71527253]
[1730767529217,12.97527253,158.3,158.24,9.71527253]
[1730767543029,3.26,158.3,158.24,9.71527253]
[1730767543331,12.97527253,158.3,158.24,9.71527253]
[1730767543537,9.71527253,158.28,158.23,9.71527253]
[1730767546641,12.97527253,158.3,158.23,9.71527253]
[1730767547034,12.97527253,158.3,158.24,9.71527253]
[1730767547636,3.26,158.3,158.24,9.71527253]
[1730767548037,3.26,158.3,158.26,9.71527253]
[1730767548439,9.71527253,158.32,158.26,9.71527253]
[1730767548739,12.95527253,158.32,158.27,9.71527253]
[1730767549449,9.71527253,158.31,158.26,9.71527253]
[1730767549643,9.71527253,158.31,158.22,1.3178]
[1730767549644,9.71527253,158.31,158.24,9.71527253]
[1730767549839,9.71527253,158.29,158.24,9.71527253]
[1730767553442,12.95527253,158.28,158.22,11.03307253]
[1730767554438,9.71527253,158.27,158.21,9.71527253]
[1730767554643,9.71527253,158.25,158.19,9.71527253]
[1730767558932,1.3999,158.27,158.18,1.3993]
[1730767558933,9.71527253,158.26,158.21,9.71527253]
[1730767559845,9.71527253,158.25,158.19,9.71527253]
[1730767560946,9.71527253,158.22,158.16,11.11407253]
[1730767563738,12.97527253,158.24,158.19,9.71527253]
[1730767564157,9.71527253,158.23,158.17,9.71527253]
[1730767564349,9.71527253,158.22,158.17,9.71527253]
[1730767565453,12.97527253,158.24,158.17,9.71527253]
[1730767566648,12.97527253,158.24,158.19,9.71527253]
[1730767567448,3.26,158.24,158.19,9.71527253]
[1730767567842,9.71527253,158.25,158.19,9.71527253]
[1730767568048,12.95527253,158.25,158.2,9.71527253]
[1730767568249,12.95527253,158.25,158.19,9.71527253]
[1730767570351,3.24,158.25,158.2,9.71527253]
[1730767571253,12.95527253,158.28,158.22,9.71527253]
[1730767571448,9.71527253,158.28,158.22,9.71527253]
[1730767573050,1.3129,158.34,158.2,9.71527253]
[1730767573051,9.71527253,158.25,158.2,9.71527253]
[1730767574563,9.71527253,158.23,158.17,11.00537253]
[1730767574758,9.71527253,158.22,158.17,1.2901]
[1730767574965,12.95527253,158.22,158.16,1.3988]
[1730767579268,9.71527253,158.2,158.15,9.71527253]
[1730767579459,9.71527253,158.2,158.14,9.71527253]
[1730767585769,9.71527253,158.2,158.15,9.71527253]
[1730767586766,9.71527253,158.22,158.17,9.71527253]
[1730767586958,12.95527253,158.23,158.17,9.71527253]
[1730767587566,12.95527253,158.23,158.2,3.1621]
[1730767590170,11.02737253,158.25,158.18,9.71527253]
[1730767590368,3.24,158.24,158.2,3.1621]
[1730767590967,6.4015,158.24,158.2,3.1621]
[1730767592369,6.4015,158.24,158.21,3.162]
[1730767594469,9.71527253,158.23,158.17,9.71527253]
[1730767594681,12.87707253,158.23,158.2,3.1622]
[1730767595073,9.71527253,158.23,158.17,9.71527253]
[1730767595965,9.71527253,158.23,158.18,3.1625]
[1730767596172,9.71527253,158.23,158.17,9.71527253]
[1730767596573,9.71527253,158.23,158.2,3.1621]
[1730767599875,12.95527253,158.24,158.18,9.71527253]
[1730767600068,12.95527253,158.24,158.21,3.1619]
[1730767601273,16.11687253,158.24,158.21,3.1619]
[1730767601767,9.71527253,158.24,158.18,9.71527253]
[1730767601973,2.5987,158.33,158.18,9.71527253]
[1730767601974,9.71527253,158.26,158.21,9.71527253]
[1730767602181,9.71527253,158.28,158.23,9.71527253]
[1730767602480,16.11577253,158.29,158.23,9.71527253]
[1730767602889,12.95527253,158.29,158.23,9.71527253]
[1730767603179,9.71527253,158.29,158.24,9.71527253]
[1730767604376,9.71527253,158.28,158.21,9.71527253]
[1730767604679,9.71527253,158.28,158.23,9.71527253]
[1730767606274,12.87597253,158.28,158.23,9.71527253]
[1730767606474,9.71527253,158.28,158.23,9.71527253]
[1730767607074,9.71527253,158.28,158.25,3.1611]
[1730767608884,17.47567253,158.32,158.29,3.1604]
[1730767609080,11.07577253,158.32,158.26,9.71527253]
[1730767609485,11.07577253,158.32,158.3,3.1602]
[1730767609990,3.1597,158.33,158.3,3.1602]
[1730767610175,16.11487253,158.34,158.31,3.16]
[1730767610374,11.08307253,158.37,158.3,9.71527253]
[1730767610680,11.08307253,158.37,158.34,3.1593]
[1730767610681,9.71527253,158.37,158.34,3.1593]
[1730767610876,1.1668,158.42,158.28,3.24]
[1730767610877,9.71527253,158.39,158.33,9.71527253]
[1730767611180,9.71527253,158.39,158.28,3.24]
[1730767611181,9.71527253,158.4,158.35,9.71527253]
[1730767611385,12.87357253,158.4,158.36,3.159]
[1730767611688,9.71527253,158.4,158.35,9.71527253]
[1730767611891,9.71527253,158.4,158.37,3.1588]
[1730767612581,12.87357253,158.4,158.36,3.159]
[1730767613880,2.5346,158.48,158.41,3.1581]
[1730767613881,49.00367611,158.43,158.41,3.1581]
[1730767614081,12.87257253,158.45,158.41,3.1581]
[1730767614484,12.87257253,158.45,158.39,9.71527253]
[1730767614485,3.1575,158.44,158.4,3.1581]
[1730767614692,3.1575,158.44,158.39,9.71527253]
[1730767614883,12.95527253,158.46,158.4,9.71527253]
[1730767615183,14.32307253,158.48,158.42,9.71527253]
[1730767615586,4.6078,158.48,158.45,3.1571]
[1730767615786,12.87177253,158.49,158.43,9.71527253]
[1730767615981,9.71527253,158.49,158.43,9.71527253]
[1730767616189,9.71527253,158.49,158.46,3.157]
[1730767616387,9.71527253,158.49,158.43,9.71527253]
[1730767616593,3.1564,158.5,158.45,9.71527253]
[1730767618194,9.71527253,158.47,158.43,9.71527253]
[1730767618594,3.1567,158.48,158.43,9.71527253]
[1730767618794,3.1567,158.48,158.44,9.71527253]
[1730767619000,3.1567,158.48,158.44,12.87257253]
[1730767619595,3.1567,158.48,158.44,3.1573]
[1730767620788,42.50904993,158.51,158.45,12.87237253]
[1730767620789,12.87157253,158.5,158.45,12.87237253]
[1730767621800,3.1567,158.48,158.45,9.71527253]
[1730767622404,9.71527253,158.5,158.45,9.71527253]
[1730767622901,12.87167253,158.5,158.46,3.157]
[1730767624807,3.1564,158.5,158.46,12.87227253]
[1730767625399,9.71527253,158.53,158.47,9.71527253]
[1730767625600,16.11107253,158.53,158.49,3.1563]
[1730767626494,3.1558,158.53,158.49,3.1563]
[1730767627000,3.156,158.52,158.48,3.1566]
[1730767628195,3.156,158.52,158.49,3.1564]
[1730767628502,12.87107253,158.53,158.49,3.1564]
[1730767629001,3.1559,158.52,158.49,3.1564]
[1730767629507,9.71527253,158.53,158.47,9.71527253]
[1730767629804,3.1561,158.51,158.48,3.1566]
[1730767630204,3.24,158.54,158.47,9.71527253]
[1730767630205,3.1563,158.5,158.47,3.1568]
[1730767630396,9.71527253,158.52,158.47,3.1568]
[1730767630804,9.71527253,158.52,158.46,9.71527253]
[1730767631001,3.1561,158.51,158.48,3.1566]
[1730767634507,3.156,158.52,158.47,12.87207253]
[1730767634706,9.71527253,158.53,158.47,12.87207253]
[1730767635521,3.156,158.52,158.47,12.87207253]
[1730767635810,9.71527253,158.53,158.47,12.87207253]
[1730767636113,3.1563,158.5,158.47,12.87207253]
[1730767636510,3.24,158.54,158.5,3.1561]
[1730767636909,9.71527253,158.53,158.49,9.71527253]
[1730767638008,3.156,158.52,158.49,12.87157253]